[Event "Schack-SM 2023: Mastarklassen"]
[Site "Helsingborg Arena, Mellersta Stenbocksgatan 14, Helsingborg, Sweden"]
[Date "2023.07.08"]
[Round "8.5"]
[White "Mashhadi, Peyman"]
[Black "Mardell, Jimmy"]
[Result "0-1"]
[TimeControl "90 minutes for 40 moves + 30 minutes for the rest of games + 30 seconds per move from move one."]
[WhiteElo "2117"]
[BlackElo "2160"]

1. e4 {[%clk 01:30:53]} {[%emt 00:00:06]} c5 {[%clk 01:30:52]} {[%emt
00:00:09]} 2. Nf3 {[%clk 01:31:09]} {[%emt 00:00:13]} e6 {[%clk 01:31:10]}
{[%emt 00:00:13]} 3. d4 {[%clk 01:31:14]} {[%emt 00:00:25]} cxd4 {[%clk
01:31:34]} {[%emt 00:00:06]} 4. Nxd4 {[%clk 01:31:31]} {[%emt 00:00:13]} Nc6
{[%clk 01:31:47]} {[%emt 00:00:18]} 5. Nb5 {[%clk 01:29:58]} {[%emt 00:02:02]}
d6 {[%clk 01:31:22]} {[%emt 00:00:56]} 6. c4 {[%clk 01:29:12]} {[%emt
00:01:14]} a6 {[%clk 01:28:31]} {[%emt 00:03:24]} 7. N5c3 {[%clk 01:27:17]}
{[%emt 00:02:24]} Nf6 {[%clk 01:27:23]} {[%emt 00:01:38]} 8. Be2 {[%clk
01:25:04]} {[%emt 00:02:42]} Be7 {[%clk 01:26:18]} {[%emt 00:01:35]} 9. O-O
{[%clk 01:25:14]} {[%emt 00:00:19]} O-O {[%clk 01:26:40]} {[%emt 00:00:10]} 10.
Be3 {[%clk 01:21:50]} {[%emt 00:03:52]} b6 {[%clk 01:16:01]} {[%emt 00:11:11]}
11. Nd2 {[%clk 01:19:53]} {[%emt 00:02:26]} Bb7 {[%clk 01:12:44]} {[%emt
00:03:47]} 12. Na4 {[%clk 01:12:24]} {[%emt 00:07:59]} Nd7 {[%clk 01:12:56]}
{[%emt 00:00:18]} 13. f4 {[%clk 01:02:55]} {[%emt 00:09:59]} Nc5 {[%clk
01:03:31]} {[%emt 00:09:55]} 14. Bf3 {[%clk 00:51:21]} {[%emt 00:12:03]} Qc7
{[%clk 00:59:21]} {[%emt 00:04:41]} 15. Nc3 {[%clk 00:45:21]} {[%emt 00:06:31]}
Bf6 {[%clk 00:53:11]} {[%emt 00:06:40]} 16. Nb3 {[%clk 00:43:50]} {[%emt
00:02:00]} Rfd8 {[%clk 00:44:54]} {[%emt 00:08:47]} 17. Qe2 {[%clk 00:41:22]}
{[%emt 00:02:58]} Rac8 {[%clk 00:36:27]} {[%emt 00:08:58]} 18. Rad1 {[%clk
00:37:45]} {[%emt 00:04:06]} Nb4 {[%clk 00:33:15]} {[%emt 00:03:44]} 19. Nd4
{[%clk 00:35:14]} {[%emt 00:03:00]} Nc6 {[%clk 00:25:36]} {[%emt 00:08:09]} 20.
Qf2 {[%clk 00:28:59]} {[%emt 00:06:44]} Nxd4 {[%clk 00:24:33]} {[%emt
00:01:34]} 21. Bxd4 {[%clk 00:29:15]} {[%emt 00:00:12]} Bxd4 {[%clk 00:25:00]}
{[%emt 00:00:05]} 22. Rxd4 {[%clk 00:25:28]} {[%emt 00:04:16]} e5 {[%clk
00:20:23]} {[%emt 00:05:07]} 23. fxe5 dxe5 {[%clk 00:20:50]} 24. Rxd8+ {[%clk
00:24:16]} {[%emt 00:00:17]} Rxd8 {[%clk 00:21:17]} {[%emt 00:00:03]} 25. Nd5
{[%clk 00:24:02]} {[%emt 00:00:43]} Bxd5 {[%clk 00:20:42]} {[%emt 00:01:07]} 26.
cxd5 {[%clk 00:23:07]} {[%emt 00:01:24]} Nd3 {[%clk 00:17:45]} {[%emt
00:03:27]} 27. Qd2 {[%clk 00:19:51]} {[%emt 00:03:46]} Qc5+ {[%clk 00:12:21]}
{[%emt 00:05:55]} 28. Kh1 {[%clk 00:20:14]} {[%emt 00:00:06]} Qd4 {[%clk
00:12:49]} {[%emt 00:00:02]} 29. Qc2 {[%emt 00:07:13]} Rf8 {[%clk 00:08:32]}
{[%emt 00:01:04]} 30. Bg4 {[%clk 00:11:35]} {[%emt 00:06:09]} g6 {[%clk
00:07:16]} {[%emt 00:01:47]} 31. h3 {[%clk 00:09:45]} {[%emt 00:02:18]} h5
{[%clk 00:05:03]} {[%emt 00:02:44]} 32. Bf3 {[%clk 00:07:36]} {[%emt 00:02:38]}
Nxb2 {[%clk 00:03:58]} {[%emt 00:01:36]} 33. Rb1 {[%clk 00:03:51]} {[%emt
00:04:14]} Nc4 {[%clk 00:03:10]} {[%emt 00:01:20]} 34. Rd1 {[%clk 00:03:00]}
{[%emt 00:01:20]} Ne3 {[%clk 00:02:09]} {[%emt 00:01:31]} 35. Rxd4 {[%clk
00:03:18]} {[%emt 00:00:12]} Nxc2 {[%clk 00:02:36]} {[%emt 00:00:04]} 36. Rc4
{[%clk 00:03:17]} {[%emt 00:00:30]} Nd4 {[%emt 00:00:18]} 37. Rc7 {[%emt
00:01:52]} Rd8 {[%clk 00:01:27]} {[%emt 00:00:57]} 38. Bd1 {[%clk 00:01:23]}
{[%emt 00:01:56]} Kf8 {[%clk 00:01:36]} {[%emt 00:00:22]} 39. Bb3 {[%clk
00:00:43]} {[%emt 00:01:10]} f5 {[%clk 00:01:02]} {[%emt 00:01:15]} 40. exf5
gxf5 41. Rb7 {[%clk 00:20:14]} {[%emt 00:10:39]} e4 {[%clk 00:18:13]} {[%emt
00:13:18]} 42. Rxb6 {[%clk 00:18:41]} {[%emt 00:02:03]} e3 {[%clk 00:18:37]}
{[%emt 00:00:07]} 43. Kg1 {[%clk 00:19:00]} {[%emt 00:00:10]} Rc8 {[%clk
00:16:46]} {[%emt 00:02:21]} 44. d6 {[%clk 00:15:16]} {[%emt 00:04:15]} e2
{[%clk 00:16:37]} {[%emt 00:00:39]} 45. Kf2 {[%clk 00:15:27]} {[%emt 00:00:17]}
Rc1 {[%clk 00:16:47]} {[%emt 00:00:21]} 46. Rb8+ {[%clk 00:15:49]} {[%emt
00:00:08]} Kg7 {[%clk 00:17:13]} {[%emt 00:00:04]} 47. Rg8+ {[%clk 00:15:01]}
{[%emt 00:01:18]} Kf6 {[%clk 00:13:19]} {[%emt 00:04:25]} 48. Rf8+ {[%clk
00:15:06]} {[%emt 00:00:24]} Kg5 {[%emt 00:01:17]} 49. Rg8+ {[%clk 00:12:29]}
{[%emt 00:03:04]} Kh4 {[%clk 00:12:12]} {[%emt 00:00:53]} 0-1

[Event "Schack-SM 2023: Mastarklassen"]
[Site "Helsingborg Arena, Mellersta Stenbocksgatan 14, Helsingborg, Sweden"]
[Date "2023.07.08"]
[Round "8.6"]
[White "Nylen, Anders"]
[Black "Liden, Tommy"]
[Result "0-1"]
[TimeControl "90 minutes for 40 moves + 30 minutes for the rest of games + 30 seconds per move from move one."]
[WhiteElo "2094"]
[BlackElo "2107"]

1. d4 {[%clk 01:30:30]} {[%emt 00:09:27]} d5 {[%clk 01:25:18]} {[%emt
00:05:45]} 2. c4 {[%clk 01:30:52]} {[%emt 00:00:09]} e6 {[%clk 01:25:45]}
{[%emt 00:00:03]} 3. Nc3 {[%clk 01:31:10]} {[%emt 00:00:11]} c6 {[%clk
01:26:12]} {[%emt 00:00:03]} 4. Nf3 {[%clk 01:30:55]} {[%emt 00:00:45]} dxc4
{[%clk 01:26:37]} {[%emt 00:00:06]} 5. a4 {[%clk 01:30:45]} {[%emt 00:00:40]}
Bb4 {[%clk 01:26:50]} {[%emt 00:00:16]} 6. e3 {[%clk 01:28:50]} {[%emt
00:02:24]} b5 {[%clk 01:27:11]} {[%emt 00:00:11]} 7. Bd2 {[%clk 01:28:44]}
{[%emt 00:00:35]} a5 {[%clk 01:27:25]} {[%emt 00:00:16]} 8. axb5 {[%clk
01:27:42]} {[%emt 00:01:32]} Bxc3 {[%clk 01:27:45]} {[%emt 00:00:10]} 9. Bxc3
{[%clk 01:27:13]} {[%emt 00:00:59]} cxb5 {[%clk 01:28:09]} {[%emt 00:00:06]} 10.
b3 {[%clk 01:27:04]} {[%emt 00:00:38]} Bb7 {[%clk 01:28:33]} {[%emt 00:00:06]}
11. bxc4 {[%clk 01:26:43]} {[%emt 00:00:51]} b4 {[%clk 01:28:56]} {[%emt
00:00:07]} 12. Bb2 {[%clk 01:26:26]} {[%emt 00:00:47]} Nf6 {[%clk 01:29:21]}
{[%emt 00:00:06]} 13. Be2 {[%clk 01:24:20]} {[%emt 00:02:35]} Nbd7 {[%clk
01:29:19]} {[%emt 00:00:33]} 14. O-O {[%clk 01:23:05]} {[%emt 00:01:45]} O-O
{[%clk 01:27:59]} {[%emt 00:01:50]} 15. Qb3 {[%clk 01:15:18]} {[%emt 00:08:17]}
Bc6 {[%clk 01:20:45]} {[%emt 00:07:44]} 16. Qa2 {[%clk 00:57:46]} {[%emt
00:18:02]} a4 {[%clk 01:15:36]} {[%emt 00:05:40]} 17. Rac1 {[%clk 00:54:59]}
{[%emt 00:03:16]} Qb6 {[%clk 01:14:45]} {[%emt 00:01:21]} 18. Nd2 {[%clk
00:53:04]} {[%emt 00:02:25]} Rfb8 {[%clk 01:12:13]} {[%emt 00:03:02]} 19. Bd1
{[%clk 00:46:35]} {[%emt 00:06:58]} Ne4 {[%clk 01:07:54]} {[%emt 00:04:50]} 20.
d5 {[%clk 00:38:02]} {[%emt 00:09:04]} Nxd2 {[%clk 01:04:12]} {[%emt 00:04:11]}
21. Bd4 {[%clk 00:37:28]} {[%emt 00:01:03]} Nc5 {[%clk 00:58:35]} {[%emt
00:06:08]} 22. Qxd2 {[%clk 00:36:37]} {[%emt 00:01:21]} Bd7 {[%clk 00:57:58]}
{[%emt 00:01:07]} 23. e4 {[%clk 00:34:13]} {[%emt 00:02:54]} f6 {[%clk
00:50:38]} {[%emt 00:07:50]} 24. Qe3 {[%clk 00:31:36]} {[%emt 00:03:07]} Rc8
{[%clk 00:50:34]} {[%emt 00:00:34]} 25. Bg4 {[%clk 00:28:49]} {[%emt 00:03:17]}
Ra5 {[%clk 00:44:33]} {[%emt 00:06:32]} 26. Qh3 {[%clk 00:21:03]} {[%emt
00:08:15]} Re8 {[%clk 00:42:59]} {[%emt 00:02:04]} 27. Qh5 {[%clk 00:17:59]}
{[%emt 00:03:33]} Qd8 {[%clk 00:37:26]} {[%emt 00:06:04]} 28. Rcd1 {[%clk
00:11:09]} {[%emt 00:07:19]} e5 {[%clk 00:31:41]} {[%emt 00:06:15]} 29. Bxc5
{[%clk 00:07:52]} {[%emt 00:03:48]} Rxc5 {[%clk 00:31:13]} {[%emt 00:00:58]} 30.
Be6+ {[%clk 00:04:44]} {[%emt 00:03:39]} Bxe6 {[%clk 00:29:41]} {[%emt
00:02:01]} 31. dxe6 {[%clk 00:05:12]} {[%emt 00:00:02]} Qe7 {[%clk 00:29:38]}
{[%emt 00:00:33]} 32. Rd7 {[%clk 00:03:46]} {[%emt 00:01:56]} Qxe6 {[%clk
00:29:40]} {[%emt 00:00:29]} 33. Rfd1 {[%clk 00:03:59]} {[%emt 00:00:16]} Rxc4
{[%clk 00:26:05]} {[%emt 00:04:05]} 34. h3 {[%clk 00:03:09]} {[%emt 00:01:20]}
Rd4 {[%clk 00:21:37]} {[%emt 00:04:57]} 35. R7xd4 {[%clk 00:02:50]} {[%emt
00:00:51]} exd4 {[%clk 00:21:59]} {[%emt 00:00:07]} 36. Rxd4 {[%clk 00:03:15]}
{[%emt 00:00:05]} Rb8 {[%clk 00:21:38]} {[%emt 00:00:50]} 37. Qd1 {[%clk
00:01:31]} {[%emt 00:02:15]} b3 {[%clk 00:20:20]} {[%emt 00:01:48]} 38. Rd8+
{[%clk 00:00:49]} {[%emt 00:01:12]} Rxd8 {[%clk 00:20:32]} {[%emt 00:00:18]} 39.
Qxd8+ {[%clk 00:01:18]} Kf7 {[%clk 00:20:31]} {[%emt 00:00:30]} 40. Qc7+ {[%clk
00:01:36]} {[%emt 00:00:12]} Kf8 {[%clk 00:17:54]} {[%emt 00:03:08]} 41. Qb8+
{[%clk 00:28:33]} {[%emt 00:03:33]} Qe8 {[%clk 00:47:13]} {[%emt 00:01:11]} 42.
Qb4+ {[%clk 00:28:44]} {[%emt 00:00:19]} Kg8 {[%clk 00:47:10]} {[%emt
00:00:32]} 43. f4 {[%clk 00:28:37]} {[%emt 00:00:38]} h6 {[%clk 00:45:05]}
{[%emt 00:02:35]} 44. Kh2 {[%clk 00:27:03]} {[%emt 00:02:03]} Kh7 {[%clk
00:44:17]} {[%emt 00:01:19]} 45. Kg3 {[%clk 00:26:14]} {[%emt 00:01:16]} Qc6
{[%clk 00:43:41]} {[%emt 00:01:09]} 46. f5 {[%clk 00:16:21]} {[%emt 00:10:22]}
Qc1 {[%clk 00:42:57]} {[%emt 00:01:14]} 47. Qxa4 {[%clk 00:12:06]} {[%emt
00:04:47]} b2 {[%clk 00:42:55]} {[%emt 00:00:31]} 48. Qe8 {[%clk 00:12:24]}
{[%emt 00:00:12]} Qg5+ {[%clk 00:42:59]} 0-1

[Event "Schack-SM 2023: Mastarklassen"]
[Site "Helsingborg Arena, Mellersta Stenbocksgatan 14, Helsingborg, Sweden"]
[Date "2023.07.08"]
[Round "8.7"]
[White "Franzen, Per-Erik"]
[Black "Troberg Eskola, Love"]
[Result "0-1"]
[TimeControl "90 minutes for 40 moves + 30 minutes for the rest of games + 30 seconds per move from move one."]
[WhiteElo "2025"]
[BlackElo "2038"]

1. Nf3 {[%clk 01:30:58]} {[%emt 00:00:01]} d6 {[%clk 01:30:54]} {[%emt
00:00:07]} 2. c4 {[%clk 01:30:19]} {[%emt 00:01:08]} g6 {[%clk 01:30:35]}
{[%emt 00:00:50]} 3. d4 {[%clk 01:28:25]} {[%emt 00:02:24]} f5 {[%clk
01:30:24]} {[%emt 00:00:41]} 4. g3 {[%clk 01:26:58]} {[%emt 00:01:57]} Nf6
{[%clk 01:30:45]} {[%emt 00:00:09]} 5. Bg2 {[%clk 01:26:37]} {[%emt 00:00:50]}
Bg7 {[%clk 01:31:11]} {[%emt 00:00:05]} 6. O-O {[%clk 01:26:38]} {[%emt
00:00:29]} O-O {[%clk 01:31:34]} {[%emt 00:00:06]} 7. Nc3 {[%clk 01:24:47]}
{[%emt 00:02:21]} Nc6 {[%clk 01:31:58]} {[%emt 00:00:07]} 8. d5 {[%clk
01:22:12]} {[%emt 00:03:04]} Ne5 {[%clk 01:32:22]} {[%emt 00:00:06]} 9. Qc2
{[%clk 01:18:48]} {[%emt 00:03:54]} Nxc4 {[%clk 01:26:45]} {[%emt 00:06:08]} 10.
Nb5 {[%clk 01:17:06]} {[%emt 00:02:12]} a6 {[%clk 01:20:07]} {[%emt 00:07:08]}
11. Qxc4 {[%clk 01:15:38]} {[%emt 00:01:58]} axb5 {[%clk 01:20:26]} {[%emt
00:00:12]} 12. Qxb5 {[%clk 01:15:08]} {[%emt 00:00:59]} Ne4 {[%clk 00:59:41]}
{[%emt 00:21:14]} 13. Be3 {[%clk 01:04:41]} {[%emt 00:10:56]} c6 {[%clk
00:36:00]} {[%emt 00:24:13]} 14. dxc6 {[%clk 00:59:16]} {[%emt 00:05:54]} bxc6
{[%clk 00:36:29]} {[%emt 00:00:02]} 15. Qxc6 {[%clk 00:54:30]} {[%emt
00:05:16]} Rb8 {[%clk 00:30:29]} {[%emt 00:06:31]} 16. Bd4 {[%clk 00:43:02]}
{[%emt 00:11:56]} Bxd4 {[%clk 00:27:20]} {[%emt 00:03:39]} 17. Nxd4 {[%clk
00:38:37]} {[%emt 00:04:55]} Rxb2 {[%clk 00:25:29]} {[%emt 00:02:22]} 18. Bxe4
{[%clk 00:35:37]} {[%emt 00:03:29]} fxe4 {[%clk 00:25:53]} {[%emt 00:00:06]} 19.
Qd5+ {[%clk 00:32:50]} {[%emt 00:03:17]} Rf7 {[%clk 00:24:45]} {[%emt
00:01:38]} 20. Qxe4 {[%clk 00:22:21]} {[%emt 00:10:59]} Bb7 {[%clk 00:22:56]}
{[%emt 00:02:20]} 21. Qe6 {[%clk 00:21:25]} {[%emt 00:01:25]} Qb6 {[%clk
00:17:42]} {[%emt 00:05:45]} 22. e3 {[%clk 00:16:23]} {[%emt 00:05:31]} Ba6
{[%clk 00:15:58]} {[%emt 00:02:14]} 23. Rac1 {[%clk 00:12:56]} {[%emt
00:03:56]} Bxf1 {[%clk 00:14:13]} {[%emt 00:02:16]} 24. Rxf1 {[%clk 00:10:10]}
{[%emt 00:03:16]} Qa6 {[%clk 00:13:11]} {[%emt 00:01:32]} 25. Rc1 {[%clk
00:04:52]} {[%emt 00:05:48]} Rbxf2 {[%clk 00:13:17]} {[%emt 00:00:24]} 0-1

[ePGN "0.1;DGT LiveChess/2.2.5"]

[Event "Schack-SM 2023: Junior-SM"]
[Site "Helsingborg Arena, Mellersta Stenbocksgatan 14, Helsingborg, Sweden"]
[Date "2023.07.08"]
[Round "8.1"]
[White "Strom-Engdahl, Alexander"]
[Black "Joensson, Oscar"]
[Result "1/2-1/2"]
[TimeControl "90 minutes for 40 moves + 30 minutes for the rest of the game + 30 seconds per move from move one."]
[WhiteElo "2120"]
[BlackElo "2077"]

1. e4 {[%clk 01:30:55]} {[%emt 00:00:04]} c6 {[%clk 01:30:55]} {[%emt
00:00:05]} 2. d4 {[%clk 01:31:21]} {[%emt 00:00:04]} d5 {[%clk 01:31:22]}
{[%emt 00:00:03]} 3. e5 {[%clk 01:31:46]} {[%emt 00:00:06]} c5 {[%clk
01:31:48]} {[%emt 00:00:04]} 4. dxc5 {[%clk 01:32:10]} {[%emt 00:00:06]} e6
{[%clk 01:32:13]} {[%emt 00:00:05]} 5. a3 {[%clk 01:32:36]} {[%emt 00:00:04]}
Bxc5 {[%clk 01:32:38]} {[%emt 00:00:05]} 6. Qg4 {[%clk 01:33:02]} {[%emt
00:00:03]} Ne7 {[%clk 01:18:46]} {[%emt 00:14:22]} 7. Nf3 {[%clk 01:32:47]}
{[%emt 00:00:45]} Ng6 {[%clk 01:18:06]} {[%emt 00:01:10]} 8. Bd3 {[%clk
01:32:36]} {[%emt 00:00:41]} Nc6 {[%clk 01:17:39]} {[%emt 00:00:56]} 9. O-O
{[%clk 01:32:24]} {[%emt 00:00:43]} O-O {[%clk 01:06:21]} {[%emt 00:11:49]} 10.
Qh5 {[%clk 01:32:39]} {[%emt 00:00:15]} Nd4 {[%clk 00:39:30]} {[%emt 00:27:21]}
11. Nxd4 {[%clk 01:24:43]} {[%emt 00:08:26]} Bxd4 {[%clk 00:39:54]} {[%emt
00:00:06]} 12. c3 {[%clk 01:22:46]} {[%emt 00:02:27]} Bb6 {[%clk 00:37:58]}
{[%emt 00:02:25]} 13. Nd2 {[%clk 01:20:21]} {[%emt 00:02:55]} Bd7 {[%clk
00:29:01]} {[%emt 00:09:28]} 14. Nf3 {[%clk 01:18:38]} {[%emt 00:02:12]} Qe8
{[%clk 00:29:16]} {[%emt 00:00:15]} 15. a4 {[%clk 01:08:34]} {[%emt 00:10:35]}
Bxa4 {[%clk 00:23:35]} {[%emt 00:06:10]} 16. Ng5 {[%clk 01:06:53]} {[%emt
00:02:11]} h6 {[%clk 00:23:55]} {[%emt 00:00:10]} 17. Nxf7 {[%clk 01:06:09]}
{[%emt 00:01:15]} Qxf7 {[%clk 00:14:03]} {[%emt 00:10:21]} 18. Bxg6 {[%clk
01:05:07]} {[%emt 00:01:32]} Bxf2+ {[%clk 00:11:53]} {[%emt 00:02:41]} 19. Kh1
{[%clk 01:05:32]} {[%emt 00:00:05]} Qd7 {[%clk 00:12:12]} {[%emt 00:00:10]} 20.
Bxh6 {[%clk 01:04:06]} {[%emt 00:01:56]} gxh6 {[%clk 00:11:57]} {[%emt
00:00:45]} 21. Qg4 {[%clk 01:03:32]} {[%emt 00:01:04]} Bc6 {[%clk 00:09:27]}
{[%emt 00:03:00]} 22. Be8+ {[%clk 00:59:40]} {[%emt 00:04:22]} Qg7 {[%clk
00:09:49]} {[%emt 00:00:09]} 23. Qxe6+ {[%clk 01:00:05]} {[%emt 00:00:05]} Kh7
{[%clk 00:07:54]} {[%emt 00:02:25]} 24. Bxc6 {[%clk 00:59:57]} {[%emt
00:00:38]} bxc6 {[%clk 00:08:19]} {[%emt 00:00:04]} 25. Qxc6 {[%clk 01:00:09]}
{[%emt 00:00:19]} Rae8 {[%clk 00:06:31]} {[%emt 00:02:18]} 26. e6 {[%clk
00:58:43]} {[%emt 00:01:56]} d4 {[%clk 00:05:21]} {[%emt 00:01:40]} 27. Qe4+
{[%clk 00:54:09]} {[%emt 00:05:03]} Kh8 {[%clk 00:05:41]} {[%emt 00:00:10]} 28.
cxd4 {[%clk 00:50:38]} {[%emt 00:04:02]} Bxd4 {[%clk 00:06:00]} {[%emt
00:00:11]} 29. Rxf8+ {[%clk 00:48:58]} {[%emt 00:02:09]} Rxf8 {[%clk 00:06:25]}
{[%emt 00:00:05]} 30. Rd1 {[%clk 00:49:20]} {[%emt 00:00:09]} Bxb2 {[%clk
00:03:52]} {[%emt 00:03:03]} 31. e7 {[%clk 00:48:27]} {[%emt 00:01:23]} Re8
{[%clk 00:04:16]} {[%emt 00:00:06]} 32. Rd8 {[%clk 00:48:48]} {[%emt 00:00:10]}
Qf7 {[%clk 00:04:40]} {[%emt 00:00:05]} 33. Rxe8+ {[%clk 00:49:11]} {[%emt
00:00:08]} Qxe8 {[%clk 00:05:02]} {[%emt 00:00:08]} 34. Qe3 {[%clk 00:49:32]}
{[%emt 00:00:08]} Kg7 {[%clk 00:04:15]} {[%emt 00:01:17]} 35. Qg3+ {[%clk
00:46:44]} {[%emt 00:03:18]} Kh7 {[%clk 00:02:22]} {[%emt 00:02:23]} 36. Qd3+
{[%clk 00:45:59]} {[%emt 00:01:15]} Kg7 {[%clk 00:02:44]} {[%emt 00:00:09]} 37.
Qg3+ {[%clk 00:45:52]} {[%emt 00:00:36]} Kh8 {[%clk 00:01:46]} {[%emt
00:01:28]} 38. Qd6 {[%clk 00:43:35]} {[%emt 00:02:47]} Kg8 {[%clk 00:02:07]}
{[%emt 00:00:09]} 39. Qe6+ {[%clk 00:41:47]} {[%emt 00:02:18]} Kg7 {[%clk
00:02:17]} {[%emt 00:00:20]} 40. Qe3 {[%clk 00:39:35]} {[%emt 00:02:42]} Bf6
{[%clk 00:02:24]} {[%emt 00:00:23]} 41. Qxa7 {[%clk 00:40:00]} {[%emt
00:00:06]} Qxe7 {[%clk 00:02:48]} {[%emt 00:00:06]} 42. Qxe7+ {[%clk 00:38:20]}
{[%emt 00:02:10]} Bxe7 {[%clk 00:03:12]} {[%emt 00:00:06]} 43. g4 {[%clk
00:38:09]} {[%emt 00:00:41]} Kg6 {[%clk 00:02:53]} {[%emt 00:00:49]} 44. Kg2
{[%clk 00:37:34]} {[%emt 00:01:05]} Kg5 {[%clk 00:03:11]} {[%emt 00:00:12]} 45.
Kh3 {[%clk 00:37:01]} {[%emt 00:01:04]} Bd6 {[%clk 00:03:31]} {[%emt 00:00:10]}
46. Kg2 {[%clk 00:37:26]} {[%emt 00:00:04]} Kh4 {[%clk 00:03:49]} {[%emt
00:00:12]} 47. Kh1 {[%clk 00:37:11]} {[%emt 00:00:45]} Kh3 {[%clk 00:04:08]}
{[%emt 00:00:11]} 48. Kg1 {[%clk 00:37:36]} {[%emt 00:00:05]} Bc5+ {[%clk
00:02:36]} {[%emt 00:02:02]} 49. Kh1 {[%clk 00:37:52]} {[%emt 00:00:15]} Bf2
{[%clk 00:02:54]} {[%emt 00:00:11]} 50. g5 {[%clk 00:38:17]} {[%emt 00:00:06]}
hxg5 {[%clk 00:03:18]} {[%emt 00:00:05]} 1/2-1/2